bitfinex-derivatives/quotes_ETHF0:USTF0_20250926
["timestamp","ask_amount","ask_price","bid_price","bid_amount"]
[1758873695722,0.0253,3939.5,3939.2,43.0558]
[1758873696026,0.45649,3939.4,3939.3,0.5502]
[1758873696725,0.48178,3939.5,3939.3,0.5502]
[1758873696924,0.45649,3939.4,3939.3,0.5502]
[1758873697218,0.0253,3939.5,3939.4,0.5502]
[1758873697427,0.6042,3940.6,3939.6,0.5502]
[1758873697636,0.45639,3940.3,3940.2,3.758]
[1758873697833,0.45639,3940.3,3940.2,40.4002]
[1758873698026,1.06059,3940.3,3940.2,40.4002]
[1758873698334,0.6042,3940.3,3940.2,40.4002]
[1758873698733,0.6042,3940.8,3940.2,43.608]
[1758873698930,3.2078,3941.1,3940.2,43.608]
[1758873698931,0.6042,3940.9,3940.2,43.608]
[1758873699129,0.6042,3940.7,3940.4,0.45637]
[1758873699431,0.6042,3940.7,3940.5,0.266]
[1758873699630,0.2248,3940.5,3940.2,3.758]
[1758873699826,0.6042,3940.4,3940.3,39.849]
[1758873700029,0.6042,3940.4,3940.3,40.30539]
[1758873700229,0.6042,3940.4,3940.3,39.849]
[1758873701331,0.6042,3940.4,3940.3,40.30539]
[1758873701538,0.6042,3940.4,3940.3,41.10999]
[1758873701934,0.6042,3940.4,3940.3,1.26199]
[1758873702236,0.6042,3940.4,3940.3,41.66019]
[1758873702431,0.6042,3940.4,3940.3,41.2038]
[1758873704639,0.6042,3940.4,3940.3,41.66019]
[1758873704935,0.6263,3941.0,3940.9,0.8056]
[1758873705135,1.79103582,3941.0,3940.9,1.0706]
[1758873705337,2.16213582,3941.0,3940.9,1.0706]
[1758873705532,2.16213582,3941.0,3940.9,0.6684]
[1758873706029,2.16213582,3941.0,3940.9,0.265]
[1758873706030,2.61844582,3941.0,3940.9,0.265]
[1758873708435,1.3799,3939.9,3939.8,4.06765]
[1758873708632,1.3799,3939.9,3939.8,43.91065]
[1758873709037,1.0088,3939.9,3939.8,44.46085]
[1758873710237,1.83633,3939.9,3939.8,3.6112]
[1758873710428,1.3799,3939.9,3939.8,43.91065]
[1758873711136,1.3799,3939.9,3939.8,43.4542]
[1758873711544,1.3799,3939.9,3939.8,43.91065]
[1758873711738,0.6042,3940.6,3940.5,0.4034]
[1758873712041,2.05791,3941.0,3940.9,0.4034]
[1758873712243,2.61838589,3941.0,3940.9,0.6684]
[1758873713139,2.61838589,3941.0,3940.9,0.265]
[1758873716145,0.4046,3939.7,3939.6,0.45647]
[1758873716345,0.4046,3939.7,3939.6,0.8056]
[1758873716346,1.0088,3939.7,3939.6,0.8056]
[1758873716551,1.3799,3939.7,3939.6,40.6456]
[1758873716952,1.83636,3939.7,3939.6,40.6456]
[1758873717137,2.06118,3939.5,3939.4,3.2078]
[1758873717343,2.06118,3939.5,3939.0,0.20661187]
[1758873717344,0.86113,3939.1,3939.0,0.20661187]
[1758873717552,2.40388393,3939.1,3939.0,0.47061187]
[1758873717850,2.40388393,3939.1,3939.0,0.264]
[1758873718236,1.06081,3938.4,3938.3,3.2078]
[1758873718436,0.829,3938.0,3937.9,3.23319457]
[1758873718647,0.829,3938.0,3937.9,43.07419457]
[1758873718846,0.6042,3938.0,3937.9,43.07419457]
[1758873719049,0.6042,3938.0,3937.9,43.62439457]
[1758873719347,0.829,3938.0,3937.9,43.07419457]
[1758873719548,0.829,3938.0,3937.9,3.23319457]
[1758873719750,0.829,3938.0,3937.9,43.07719457]
[1758873720054,0.829,3938.0,3937.9,0.02539457]
[1758873720245,4.62590392,3938.0,3937.9,39.86839457]
[1758873720444,4.62590392,3938.0,3937.9,0.02539457]
[1758873720445,9.62590392,3938.0,3937.9,0.02539457]
[1758873720742,1.08265,3937.2,3937.1,3.2078]
[1758873720947,1.65017231,3937.2,3937.1,39.846]
[1758873721151,1.08271,3936.7,3936.6,3.2078]
[1758873721451,1.08271,3936.7,3936.6,39.846]
[1758873721839,1.08271,3936.7,3936.1,3.737]
[1758873721840,0.45686,3936.3,3936.1,3.737]
[1758873722041,0.6259,3936.7,3935.9,39.583]
[1758873722042,0.864,3936.0,3935.9,39.583]
[1758873722238,0.864,3936.0,3935.9,39.848]
[1758873722437,0.864,3936.0,3935.5,3.2078]
[1758873722438,0.6259,3935.6,3935.5,3.2078]
[1758873722639,4.29056,3936.3,3935.6,0.5292]
[1758873722946,0.45688,3936.1,3935.7,0.7942]
[1758873723150,1.08278,3936.1,3935.8,0.5292]
[1758873723350,1.08278,3936.1,3935.9,0.265]
[1758873723554,0.6259,3936.0,3935.9,0.265]
[1758873723746,0.6259,3936.0,3935.8,0.5292]
[1758873723954,0.6259,3935.5,3935.2,0.5292]
[1758873724149,0.45697,3935.3,3935.1,3.7362]
[1758873724447,0.45697,3935.3,3934.9,3.2078]
[1758873724448,0.6259,3935.2,3934.9,3.2078]
[1758873724647,0.2381,3935.5,3934.8,40.1202]
[1758873724851,1.08286,3935.4,3935.0,0.265]
[1758873725052,0.45698,3935.3,3935.0,0.265]
[1758873725346,0.45697,3935.3,3935.1,39.858]
[1758873725651,1.05617,3935.3,3935.2,39.86]
[1758873725849,0.5992,3935.3,3934.5,3.7366]
[1758873726048,3.2078,3935.8,3935.1,3.2078]
[1758873726250,3.2078,3936.2,3935.3,0.5288]
[1758873726457,3.2078,3936.2,3935.5,0.5288]
[1758873726458,0.45688,3936.1,3935.5,0.5288]
[1758873726655,0.5992,3936.0,3935.6,0.266]
[1758873726857,0.4569,3935.9,3935.7,0.5288]
[1758873727053,1.0561,3935.9,3935.8,0.266]
[1758873727249,1.14228,3935.8,3935.1,3.2078]
[1758873727549,1.14228,3935.8,3934.3,0.5288]
[1758873727550,3.2078,3935.6,3935.3,0.5288]
[1758873727757,3.2078,3935.6,3935.5,0.5288]
[1758873728149,3.2078,3935.6,3935.5,40.3998]
[1758873729068,3.2078,3935.6,3935.5,40.4018]
[1758873729261,3.807,3935.6,3935.5,40.4018]
[1758873729555,3.807,3935.6,3935.5,39.873]
[1758873729752,0.45698,3935.2,3934.8,0.98582]
[1758873729963,1.05618,3935.2,3934.9,40.85981]
[1758873730158,0.2427,3935.5,3934.7,3.2078]
[1758873730451,0.45696,3935.4,3935.0,0.5288]
[1758873730658,0.45696,3935.4,3935.3,0.5288]
[1758873731155,0.45696,3935.4,3935.2,0.98578]
[1758873731351,3.2078,3935.6,3935.4,0.45695]
[1758873731653,3.2078,3935.6,3935.5,0.7988]
[1758873732546,3.807,3936.0,3935.5,0.7988]
[1758873732751,0.4569,3935.9,3935.7,0.45691]
[1758873732956,0.4569,3935.9,3935.8,0.269]
[1758873733448,1.0561,3935.9,3935.8,0.269]
[1758873735059,0.5992,3935.9,3935.8,0.269]
[1758873735352,3.2078,3936.4,3936.3,0.5288]
[1758873735553,3.2078,3936.4,3936.3,40.4098]
[1758873736153,3.2078,3937.3,3936.6,0.5288]
[1758873736355,0.5992,3937.2,3936.4,0.5288]
[1758873736562,0.2427,3938.0,3936.4,0.5288]
[1758873736563,0.45682,3936.6,3936.4,0.5288]
[1758873736753,1.05602,3936.6,3936.5,39.883]
[1758873736955,3.2078,3936.9,3935.8,3.2078]
[1758873736956,1.0561,3936.0,3935.8,3.2078]
[1758873737156,0.69959,3936.0,3935.9,39.883]
[1758873737657,1.29879,3936.0,3935.8,3.2078]
[1758873737860,1.29879,3936.0,3935.9,39.882]
[1758873738460,1.29879,3936.0,3935.8,3.2078]
[1758873738461,0.69959,3936.0,3935.8,3.2078]
[1758873738763,0.5992,3935.9,3935.8,3.2078]
[1758873738958,0.5992,3935.9,3935.8,42.8208]
[1758873739157,0.5992,3935.9,3935.8,43.0908]
[1758873740454,3.2332,3936.4,3935.9,0.5288]
[1758873740761,0.0254,3936.4,3936.3,0.5288]
[1758873740953,3.2078,3937.2,3937.0,0.45676]
[1758873741157,3.2078,3937.2,3937.1,0.7734]
[1758873742163,0.45674,3937.3,3937.1,40.3884]
[1758873742364,0.45674,3937.3,3937.1,40.84516]
[1758873742365,1.05594,3937.3,3937.1,40.84516]
[1758873742558,3.2078,3937.6,3937.3,0.45673]
[1758873742753,4.26371,3937.6,3937.4,0.27]
[1758873742953,4.26371,3937.6,3936.8,0.5034]
[1758873742954,0.45677,3937.1,3936.8,0.5034]
[1758873743163,0.45676,3937.1,3937.0,0.45677]
[1758873743368,1.05596,3937.1,3937.0,40.33977]
[1758873743564,0.45679,3936.8,3936.6,3.2078]
[1758873743764,0.45679,3936.8,3935.9,0.5034]
[1758873743765,0.5992,3936.1,3935.9,0.4569]
[1758873744075,1.05608,3936.1,3936.0,39.613]
[1758873744267,1.05608,3936.1,3936.0,39.883]
[1758873744464,0.5992,3935.8,3935.7,3.66472]
[1758873744670,0.5992,3935.8,3935.7,43.0898]
[1758873746066,0.5992,3935.8,3935.7,3.2078]
[1758873746269,0.5992,3935.8,3935.7,43.0898]
[1758873747273,0.5992,3935.8,3935.7,42.8218]
[1758873747462,1.16470711,3935.8,3935.7,39.883]
[1758873748168,0.5992,3935.2,3935.0,0.5034]
[1758873748467,1.05618,3935.2,3935.1,39.883]
[1758873748667,0.5992,3935.2,3935.1,39.883]
[1758873748966,0.5992,3934.9,3934.8,3.66482]
[1758873749159,0.5992,3934.9,3934.8,43.54882]
[1758873749563,0.45701,3935.0,3934.8,44.05222]
[1758873750266,1.05621,3935.0,3934.9,0.45702]
[1758873750771,0.2427,3935.5,3935.0,0.5118]
[1758873751070,1.02343276,3935.4,3935.3,0.96877]
[1758873751368,1.02343276,3935.4,3935.3,0.7808]
[1758873751559,1.63453276,3935.4,3935.3,0.269]
[1758873751765,1.06806,3935.4,3935.3,0.72597]
[1758873752367,1.62190408,3935.4,3935.3,0.269]
[1758873753071,0.6111,3934.9,3934.8,3.66483]
[1758873753266,1.06806,3935.4,3934.8,43.6066]
[1758873753473,0.6111,3935.4,3935.3,0.45697]
[1758873753665,0.45694,3935.6,3935.5,0.45695]
[1758873753867,0.45694,3935.6,3935.5,0.269]
[1758873754065,1.62185164,3935.6,3935.5,0.269]
[1758873755664,1.62185164,3935.6,3935.5,0.72595]
[1758873756071,1.62185164,3935.6,3935.5,0.45695]
[1758873756271,1.62185164,3935.6,3935.5,39.887]
[1758873757669,0.45696,3935.4,3935.3,0.45697]
[1758873757872,1.06806,3935.4,3935.3,40.34497]
[1758873758464,1.06806,3935.4,3935.3,0.45697]
[1758873758773,0.6111,3935.4,3935.3,40.34497]
[1758873759273,1.06806,3935.4,3935.3,40.34497]
[1758873759771,0.45699,3935.1,3935.0,0.5118]
[1758873759969,1.75353,3935.4,3935.0,40.3998]
[1758873759970,0.6111,3935.4,3935.0,40.3998]
[1758873760167,0.6111,3935.2,3935.1,0.45699]
[1758873760368,0.6111,3935.5,3935.4,0.45696]
[1758873760674,0.55092149,3935.5,3935.4,1.23676]
[1758873760867,0.45693,3935.7,3935.6,0.45694]
[1758873761062,1.0078805,3935.7,3935.6,0.268]
[1758873761369,1.6189805,3935.7,3935.6,0.268]
[1758873761567,1.30635,3935.5,3935.4,0.45696]
[1758873761762,3.2078,3935.9,3935.5,0.5118]
[1758873761968,0.55088828,3935.8,3935.7,0.5118]
[1758873762166,0.45692,3935.7,3935.6,0.268]
[1758873762362,1.06802,3935.7,3935.6,0.268]
[1758873762567,1.61892274,3935.7,3935.6,0.268]
[1758873763267,1.58040274,3935.7,3935.6,1.13264]
[1758873763474,1.48642,3935.7,3935.6,1.13264]
[1758873763676,1.90632,3935.7,3935.6,0.6757]
[1758873763875,1.90632,3935.7,3935.6,1.13264]
[1758873764379,1.90632,3935.7,3935.6,0.6757]
[1758873764866,1.4494,3935.7,3935.6,1.13264]
[1758873765072,1.90632,3935.7,3935.6,0.6757]
[1758873766675,1.90632,3935.7,3935.6,1.13264]
[1758873767076,1.90632,3935.7,3935.6,0.6757]
[1758873767275,1.90632,3935.7,3935.6,1.13264]
[1758873768279,1.90632,3935.7,3935.6,0.6757]
[1758873769587,1.90632,3935.7,3935.6,40.2967]
[1758873769786,1.90632,3935.7,3935.6,0.4077]
[1758873769976,1.90632,3935.7,3935.6,40.2967]
[1758873770179,1.90632,3935.7,3935.6,0.4077]
[1758873770379,1.90632,3935.7,3935.6,40.2967]
[1758873770579,1.9064,3935.1,3934.9,0.45702]
[1758873770781,2.14471,3935.0,3934.9,0.45702]
[1758873771086,2.14471,3935.0,3934.9,40.34602]
[1758873771880,1.6877,3935.0,3934.9,40.34602]
[1758873772085,1.0295,3935.4,3935.3,1.77797]
[1758873772388,1.48646,3935.4,3935.3,2.04497]
[1758873772590,1.48646,3935.4,3935.3,1.53317]
[1758873772780,1.48646,3935.4,3935.3,1.0762]
[1758873773086,1.90636,3935.4,3935.3,1.0762]
[1758873773282,1.48649,3935.1,3935.0,1.2662]
[1758873773483,1.90639,3935.1,3935.0,0.457]
[1758873773787,1.90639,3935.1,3935.0,40.347]
[1758873774208,1.90639,3935.1,3935.0,39.89]
[1758873775110,1.4494,3934.2,3934.1,1.814163]
[1758873775312,1.9065,3934.2,3934.1,39.89]
[1758873775603,0.6111,3934.2,3934.1,40.85891]
[1758873775798,3.66489,3934.3,3934.2,1.2663]
[1758873776000,4.27599,3934.3,3934.2,1.7781]
[1758873776200,4.27599,3934.3,3934.2,1.321]
[1758873776504,4.27599,3934.3,3934.2,1.7781]
[1758873776505,4.69439,3934.3,3934.2,1.7781]
[1758873777397,4.69439,3934.3,3934.2,1.2663]
[1758873777901,3.2078,3934.3,3934.2,1.7781]
[1758873778097,1.14242,3935.4,3934.8,0.45703]
[1758873778098,3.2078,3934.9,3934.8,0.45703]
[1758873778402,0.87543,3934.9,3934.8,1.0762]
[1758873778796,1.48653,3934.9,3934.8,1.0762]
[1758873779303,1.90643,3934.9,3934.8,1.0762]
[1758873780799,4.35022,3935.4,3934.8,1.572]
[1758873780800,3.2078,3935.4,3934.8,1.572]
[1758873781002,1.04688,3935.2,3935.1,1.3039]
[1758873781207,1.44768,3935.2,3935.1,1.0751]
[1758873781505,1.44768,3935.2,3935.1,2.02789]
[1758873781699,1.44768,3935.2,3935.1,1.5709]
[1758873781899,1.84718,3935.2,3935.1,40.7031]
[1758873782905,1.68641,3935.0,3934.9,0.8081]
[1758873783096,1.68641,3935.0,3934.9,41.16012]
[1758873784303,1.68641,3935.0,3934.9,41.65592]
[1758873784603,1.84724,3934.8,3934.7,0.87334]
[1758873784804,0.5899,3935.2,3935.0,0.457]
[1758873785107,1.84719,3935.1,3935.0,0.8081]
[1758873785294,1.84719,3935.1,3935.0,40.4361]
[1758873785501,0.5899,3935.1,3935.0,41.6524]
[1758873785696,0.45699,3935.2,3935.0,41.1601]
[1758873785896,0.45699,3935.2,3935.1,1.74709]
[1758873786102,0.5768,3935.2,3935.1,1.74709]
[1758873787008,1.03378,3935.2,3935.1,1.74709]
[1758873787398,1.03378,3935.2,3935.1,1.2901]
[1758873787604,2.10731,3935.0,3934.9,0.3832]
[1758873787806,1.2372,3935.0,3934.9,40.73421]
[1758873788105,1.2372,3935.0,3934.9,41.22651]
[1758873788402,1.0694,3935.5,3935.4,0.45696]
[1758873788601,2.10315,3935.5,3935.4,1.0648]
[1758873789213,2.10315,3935.5,3935.4,1.52176]
[1758873789503,1.6462,3935.5,3935.4,1.52176]
[1758873789704,2.10315,3935.5,3935.4,1.52176]
[1758873790102,1.27639,3936.0,3935.9,0.4569]
[1758873790306,0.9948,3936.0,3935.9,2.014]
[1758873790510,3.2332,3936.3,3936.2,1.25466]
[1758873790511,4.228,3936.3,3936.2,1.25466]
[1758873790702,4.228,3936.3,3936.2,1.52166]
[1758873790903,0.0254,3936.3,3936.2,2.01396]
[1758873791107,0.0254,3936.3,3936.2,10.42725741]
[1758873791307,3.2078,3937.2,3937.1,0.45676]
[1758873791513,3.6258,3937.2,3937.1,41.14756]
[1758873791714,3.6258,3937.2,3937.1,41.63986]
[1758873792013,4.2026,3937.2,3937.1,41.1831]
[1758873792209,4.6157,3937.2,3937.1,0.7978]
[1758873792404,4.6157,3937.2,3936.3,0.4923]
[1758873792405,0.45684,3936.4,3936.3,0.4923]
[1758873792709,0.86998,3936.1,3936.0,0.3832]
[1758873792912,1.28798,3936.1,3936.0,40.2732]
[1758873793212,1.86478,3936.1,3936.0,40.2732]
[1758873793415,1.4079,3936.1,3936.0,40.2732]
[1758873794508,1.4079,3936.1,3936.0,0.3832]
[1758873794716,0.9899,3935.9,3935.8,0.84011]
[1758873794910,1.4079,3935.9,3935.8,40.6858]
[1758873795102,3.2078,3936.4,3936.3,1.74695]
[1758873795303,4.2668,3936.8,3936.7,0.7978]
[1758873795502,4.2668,3936.8,3936.7,1.0638]
[1758873795503,5.0979,3936.8,3936.7,1.0638]
[1758873795709,4.2668,3936.8,3936.7,39.888]
[1758873795907,1.4079,3936.2,3936.1,0.3832]
[1758873796113,1.4079,3936.2,3936.1,40.2712]
[1758873796704,0.5768,3936.2,3936.1,40.2712]
[1758873796910,0.5768,3936.2,3936.1,40.7635]
[1758873797319,0.45682,3936.7,3936.4,1.2901]
[1758873797514,3.2332,3936.8,3936.7,1.74691]
[1758873797816,3.2078,3937.2,3937.1,0.45676]
[1758873798010,3.2078,3937.2,3937.1,1.52056]
[1758873798210,3.7846,3937.2,3937.1,1.52056]
[1758873799117,4.2026,3937.2,3937.1,1.52056]
[1758873799313,4.65935,3937.2,3937.1,1.0638]
[1758873799517,4.65935,3937.2,3937.1,1.52056]
[1758873800019,5.07245,3937.2,3937.1,40.34076]
[1758873800327,4.6157,3937.2,3937.1,0.83996]
[1758873800618,4.6157,3937.2,3937.1,40.72396]
[1758873800917,5.07245,3937.2,3937.1,40.72396]
[1758873801619,4.6157,3937.2,3937.1,40.72396]
[1758873802318,5.07245,3937.2,3937.1,40.2672]
[1758873802622,0.5768,3937.1,3936.7,0.45681]
[1758873802810,1.28791,3936.7,3936.6,0.45681]
[1758873803006,0.8311,3936.2,3936.1,0.45688]
[1758873803216,1.4079,3936.2,3936.1,40.33688]
[1758873803817,0.6555,3936.0,3935.9,3.2078]
[1758873804019,2.10719,3936.0,3935.9,39.88]
[1758873804318,2.10719,3936.0,3935.9,40.3369]
[1758873805115,2.10719,3936.0,3935.9,39.88]
[1758873805315,2.10719,3936.0,3935.9,40.3369]
[1758873805616,2.10719,3936.0,3935.9,0.4569]
[1758873805815,2.10719,3936.0,3935.7,0.45691]
[1758873806015,0.4569,3935.9,3935.8,40.72011]
[1758873806417,1.0337,3935.9,3935.8,40.72011]
[1758873807316,4.2026,3936.3,3936.2,0.7978]
[1758873807519,4.2026,3936.3,3936.2,1.0638]
[1758873807825,5.07255,3936.3,3936.2,1.0638]
[1758873808619,5.07255,3936.3,3936.2,1.52066]
[1758873808827,4.6157,3936.3,3936.2,1.52066]
[1758873809124,4.65945,3936.3,3936.2,1.0638]
[1758873809326,5.07255,3936.3,3936.2,1.0638]
[1758873809629,5.07255,3936.3,3936.2,41.13566]
[1758873809928,4.6157,3936.3,3936.2,41.13566]
[1758873810821,4.2026,3936.3,3936.2,41.13566]
[1758873811122,0.5672,3936.8,3936.7,1.71561]
[1758873811319,0.5672,3936.8,3936.7,1.98061]
[1758873811726,1.4312,3936.8,3936.7,1.50551]
[1758873811927,0.9744,3936.8,3936.7,1.50551]
[1758873812224,0.9744,3936.8,3936.7,41.12051]
[1758873813228,1.4312,3936.8,3936.7,41.12051]
[1758873813528,1.4312,3936.8,3936.7,1.24051]
[1758873813730,1.4312,3936.8,3936.7,41.12051]
[1758873813932,1.4312,3936.8,3936.7,1.24051]
[1758873814130,1.4312,3936.8,3936.7,41.11951]
[1758873814332,3.2078,3937.2,3937.1,1.2588]
[1758873814535,0.0253,3937.4,3937.3,1.71554]
[1758873814827,0.0253,3937.4,3937.3,1.98054]
[1758873815027,0.0253,3937.4,3937.3,1.71554]
[1758873815422,0.0253,3937.4,3937.3,41.59454]
[1758873816332,0.0253,3937.4,3937.3,49.80234]
[1758873816519,0.5672,3938.2,3938.1,1.71545]
[1758873816730,1.2107,3938.5,3938.4,1.24031]
[1758873817031,1.2107,3938.5,3938.4,1.50531]
[1758873817224,1.591,3938.5,3938.4,1.50531]
[1758873817830,2.0476,3938.5,3938.4,1.50531]
[1758873818135,2.0476,3938.5,3938.4,1.0487]
[1758873818634,2.0476,3938.5,3938.4,1.50531]
[1758873818829,1.591,3938.5,3938.4,1.50531]
[1758873820031,3.2078,3938.7,3938.4,1.50531]
[1758873820032,0.5672,3938.7,3938.6,0.45659]
[1758873820226,0.5672,3939.0,3938.9,1.71535]
[1758873820429,1.591,3939.5,3939.4,1.24019]
[1758873820632,1.2107,3939.5,3939.4,1.50519]
[1758873821835,1.591,3939.5,3939.2,0.45651]
[1758873822127,1.3547,3939.2,3939.1,0.3965]
[1758873822333,1.3547,3939.2,3939.1,40.72303]
[1758873822536,0.9744,3939.2,3939.1,40.72303]
[1758873823043,1.591,3939.0,3938.9,0.45655]
[1758873823334,1.591,3939.0,3938.9,40.32255]
[1758873823632,1.591,3939.0,3938.9,40.32155]
[1758873824034,1.591,3939.0,3938.9,0.45655]
[1758873824234,1.591,3939.0,3938.9,40.32155]
[1758873829325,1.591,3939.0,3938.9,1.24025]
[1758873829528,1.591,3939.0,3938.9,41.09925]
[1758873830636,0.5672,3939.0,3938.9,41.57435]
[1758873830941,0.8035,3939.5,3939.4,1.7153]
[1758873831238,0.8035,3939.5,3939.4,1.9793]
[1758873831735,1.66718,3939.5,3939.4,1.5042]
[1758873831935,1.2107,3939.5,3939.4,1.5042]
[1758873832337,1.66718,3939.5,3939.4,1.5042]
[1758873833141,2.04748,3939.5,3939.4,1.5042]
[1758873834236,2.04748,3939.5,3939.4,1.0477]
[1758873834433,0.4072,3938.7,3938.6,0.8716]
[1758873834741,1.3547,3938.7,3938.6,41.09629]
[1758873835037,0.9744,3938.7,3938.6,41.09629]
[1758873835236,0.9744,3938.7,3938.6,41.57139]
[1758873835441,0.5672,3938.7,3938.6,41.57139]
[1758873840836,3.66433,3939.1,3938.8,1.2306]
[1758873841036,4.64283,3939.1,3939.0,1.2306]
[1758873841235,4.64283,3939.1,3939.0,1.23234]
[1758873841640,5.04703,3939.1,3939.0,0.7758]
[1758873841842,0.45656,3938.8,3938.7,0.83587]
[1758873842046,1.83926,3938.8,3938.7,41.08637]
[1758873842243,1.83926,3938.8,3938.7,39.9703]
[1758873842438,1.83926,3938.8,3938.7,40.2333]
[1758873842743,1.25769,3938.6,3938.5,0.3793]
[1758873843042,1.83929,3938.6,3938.5,40.2333]
[1758873843546,1.83929,3938.6,3938.5,40.6899]
[1758873844551,1.87397953,3938.6,3938.5,0.8359]
[1758873844742,1.41738953,3938.6,3938.5,40.6899]
[1758873844945,1.41738953,3938.6,3938.5,41.142]
[1758873845245,1.87397953,3938.6,3938.5,40.6899]
[1758873845647,1.41738953,3938.6,3938.5,41.142]
[1758873846041,1.87397953,3938.6,3938.5,41.142]
[1758873846243,0.61628953,3938.6,3938.5,41.142]
[1758873846444,1.26055,3939.0,3938.9,0.7738]
[1758873846645,1.13034826,3939.0,3938.9,1.94545]
[1758873846849,4.62092,3939.2,3939.1,1.23033]
[1758873847044,5.17448069,3939.2,3939.1,1.94543]
[1758873847439,5.17448069,3939.2,3939.1,1.0368]
[1758873847644,5.54328069,3939.2,3939.1,0.6331]
[1758873847846,5.54328069,3939.2,3939.1,40.2241]
[1758873848442,3.76136069,3939.2,3939.1,41.13273]
[1758873848638,3.2078,3939.2,3939.1,41.13273]
[1758873850153,3.2078,3939.2,3938.0,1.814163]
[1758873850154,1.20525,3938.1,3938.0,1.814163]
[1758873850351,1.3254,3938.1,3938.0,40.31066]
[1758873850748,1.78205,3938.1,3938.0,40.31066]
[1758873850954,1.41325,3938.1,3938.0,40.31066]
[1758873852057,1.41325,3938.1,3938.0,39.854]
[1758873852252,1.03345,3938.1,3938.0,39.936]
[1758873853550,0.5768,3938.1,3938.0,40.39266]
[1758873854457,1.03345,3938.1,3938.0,40.39266]
[1758873854958,1.03345,3938.1,3938.0,39.936]
[1758873855257,1.03345,3938.1,3938.0,39.854]
[1758873855457,1.03345,3938.1,3937.9,0.45666]
[1758873855458,0.45667,3937.9,3937.5,3.2078]
[1758873855653,1.41328,3937.8,3937.7,0.2624]
[1758873855858,1.78208,3937.8,3937.7,40.1184]
[1758873856058,1.78208,3937.8,3937.7,40.57509]
[1758873856656,1.14161,3938.2,3938.1,0.3444]
[1758873856657,1.03344,3938.2,3938.1,0.3444]
[1758873856854,1.03344,3938.2,3938.1,0.6074]
[1758873857054,1.03344,3938.2,3938.1,1.06405]
[1758873857358,1.41324,3938.2,3938.1,40.1184]
[1758873859261,1.41324,3938.2,3937.8,0.082]
[1758873859262,0.2313,3937.5,3937.0,1.814163]
[1758873859562,0.6111,3936.0,3935.8,40.05091]
[1758873859757,0.6111,3936.0,3935.8,0.45691]
[1758873860067,0.2313,3936.0,3935.9,39.86]
[1758873860260,0.45686,3936.3,3936.1,0.45687]
[1758873860464,1.03366,3936.3,3936.2,0.266]
[1758873861157,1.78226,3936.3,3936.2,0.266]
[1758873861662,1.03366,3936.3,3936.2,0.266]
[1758873862256,1.41346,3936.3,3936.2,0.266]
[1758873862468,0.68819,3936.0,3935.8,0.45691]
[1758873862658,0.5768,3935.9,3935.8,0.45691]
[1758873862858,0.5768,3935.9,3935.8,40.31991]
[1758873863062,0.5768,3935.9,3935.8,40.32091]
[1758873864065,0.2313,3936.0,3935.4,0.20862]
[1758873864364,0.2313,3936.0,3935.3,3.2078]
[1758873864365,0.3798,3935.4,3935.3,3.2078]
[1758873864569,0.9566,3935.4,3935.3,43.0728]
[1758873865666,0.9566,3935.4,3935.3,3.66477]
[1758873865966,0.9566,3935.4,3935.3,43.53277]
[1758873866872,0.2313,3935.5,3935.3,43.53277]
[1758873867272,0.8081,3935.5,3935.3,43.53277]
[1758873868370,0.8081,3935.5,3935.4,0.45696]
[1758873869176,0.5768,3935.9,3935.8,0.45691]
[1758873869375,1.0337,3935.9,3935.8,0.72191]
[1758873869675,1.4135,3935.9,3935.8,0.72191]
[1758873870471,0.9566,3935.9,3935.8,0.72191]
[1758873870671,0.2313,3936.0,3935.9,0.4569]
[1758873871369,0.7898,3936.0,3935.9,0.4569]
[1758873871968,1.1633,3936.0,3935.9,0.4569]
[1758873872478,1.62019,3936.0,3935.9,0.4569]
[1758873872677,1.1633,3936.0,3935.9,0.4569]
[1758873873877,1.5515,3936.0,3935.9,0.4569]
[1758873874274,1.5515,3936.0,3935.9,40.3339]
[1758873875880,1.5515,3936.0,3935.9,0.4569]
[1758873876178,3.7663,3936.2,3936.1,0.45688]
[1758873876585,3.7663,3936.2,3936.1,40.33388]
[1758873877777,3.7663,3936.2,3936.1,0.45688]
[1758873877984,4.1398,3936.2,3936.1,40.33388]
[1758873879577,0.0254,3936.3,3936.2,0.45687]
[1758873879578,1e-05,3936.3,3936.2,0.45687]
[1758873879884,0.6048,3937.0,3936.9,1.21328]
[1758873880181,3.8126,3937.0,3936.9,1.84508]
[1758873880573,3.8126,3937.0,3936.9,1.47728]
[1758873880981,3.8126,3937.0,3936.9,1.84508]
[1758873881178,3.8126,3937.0,3936.9,1.3883]
[1758873881382,4.26937,3937.0,3936.9,1.47728]
[1758873881576,4.65757,3937.0,3936.9,1.47728]
[1758873881778,5.21607,3937.0,3936.9,1.47728]
[1758873882889,5.21607,3937.0,3936.9,1.0205]
[1758873883389,5.21607,3937.0,3936.9,1.47729]
[1758873883579,5.21607,3937.0,3936.9,41.08929]
[1758873884787,4.7593,3937.0,3936.9,41.08929]
[1758873884986,5.21607,3937.0,3936.9,41.08929]
[1758873885289,5.21607,3937.0,3936.9,41.08829]
[1758873885985,4.7593,3937.0,3936.9,41.08829]
[1758873886175,1.5515,3937.0,3936.9,41.08829]
[1758873886777,1.5515,3937.0,3936.9,41.45609]